bitfinex/quotes_BTCUSD_20220731
["timestamp","ask_amount","ask_price","bid_price","bid_amount"]
[1659243224724,0.40725733,23805.0,23802.0,0.02578202]
[1659243224942,0.40725733,23805.0,23802.0,0.04132355]
[1659243225387,0.46825733,23805.0,23802.0,0.34132355]
[1659243226531,0.46825733,23805.0,23802.0,0.55130755]
[1659243226749,0.46825733,23805.0,23803.0,0.05]
[1659243227189,0.303612,23804.0,23802.0,0.520484]
[1659243227407,0.48725733,23805.0,23802.0,0.520484]
[1659243227630,0.48725733,23805.0,23803.0,0.02578202]
[1659243227872,0.48725733,23805.0,23802.0,0.520484]
[1659243228613,0.40725733,23805.0,23803.0,0.02578202]
[1659243229417,0.40725733,23805.0,23802.0,0.520484]
[1659243229853,0.48725733,23805.0,23802.0,0.520484]
[1659243230077,0.48725733,23805.0,23802.0,0.570484]
[1659243230297,0.48725733,23805.0,23804.0,0.04754356]
[1659243230539,0.48725733,23805.0,23804.0,0.34754356]
[1659243230776,0.48725733,23805.0,23804.0,0.07332558]
[1659243230997,0.48725733,23805.0,23804.0,0.37332558]
[1659243231451,0.53825733,23805.0,23804.0,0.37332558]
[1659243231741,0.45825733,23805.0,23804.0,0.37332558]
[1659243231911,0.45825733,23805.0,23804.0,0.07332558]
[1659243232352,0.051,23805.0,23804.0,0.07332558]
[1659243232565,0.051,23805.0,23804.0,0.02887558]
[1659243232783,0.00088617,23806.0,23804.0,0.02887558]
[1659243233010,0.4081435,23806.0,23804.0,0.23883858]
[1659243233463,0.4601435,23806.0,23804.0,0.23883858]
[1659243233688,0.05288617,23806.0,23805.0,0.303612]
[1659243233909,0.05288617,23806.0,23805.0,0.05309356]
[1659243234136,0.05288617,23806.0,23805.0,0.30309356]
[1659243235258,0.05288617,23806.0,23805.0,0.00309356]
[1659243235259,0.00088617,23806.0,23805.0,0.00309356]
[1659243235494,0.05188617,23806.0,23805.0,0.30366363]
[1659243235982,0.05188617,23806.0,23804.0,0.23574502]
[1659243236207,0.05188617,23806.0,23803.0,0.010498]
[1659243236434,0.4591435,23806.0,23804.0,0.05]
[1659243236650,0.4591435,23806.0,23803.0,0.010498]
[1659243237136,0.303612,23805.0,23803.0,0.010498]
[1659243237363,0.4081435,23806.0,23803.0,0.010498]
[1659243237583,0.4671435,23806.0,23803.0,0.010498]
[1659243237807,0.303612,23805.0,23803.0,0.010498]
[1659243238053,0.4671435,23806.0,23803.0,0.010498]
[1659243239414,0.4871435,23806.0,23803.0,0.010498]
[1659243239651,0.40725733,23805.0,23803.0,0.010498]
[1659243241202,0.40725733,23805.0,23803.0,0.03628002]
[1659243241429,0.48625733,23805.0,23803.0,0.03628002]
[1659243241660,0.48625733,23805.0,23803.0,0.010498]
[1659243242346,0.48625733,23805.0,23804.0,0.02578202]
[1659243242788,0.40725733,23805.0,23804.0,0.02578202]
[1659243243012,0.40725733,23805.0,23803.0,0.010498]
[1659243243307,0.40725733,23805.0,23803.0,0.03628002]
[1659243243530,0.45925733,23805.0,23803.0,0.010498]
[1659243244420,0.45925733,23805.0,23804.0,0.32939402]
[1659243244652,0.45425733,23805.0,23803.0,0.010498]
[1659243244868,0.40225733,23805.0,23803.0,0.010498]
[1659243245311,0.4081435,23806.0,23804.0,0.02578202]
[1659243245529,0.08815871,23805.0,23803.0,0.010498]
[1659243246213,0.079,23805.0,23803.0,0.010498]
[1659243246428,0.079,23805.0,23803.0,0.03628002]
[1659243247379,0.047,23805.0,23803.0,0.03628002]
[1659243247837,0.047,23805.0,23804.0,0.0055703]
[1659243248562,0.047,23805.0,23803.0,0.310498]
[1659243248788,0.41730221,23806.0,23803.0,0.310498]
[1659243249210,0.41730221,23806.0,23803.0,0.010498]
[1659243249445,0.41730221,23806.0,23804.0,0.02578202]
[1659243249446,0.4551435,23806.0,23804.0,0.02578202]
[1659243249876,0.4551435,23806.0,23803.0,0.010498]
[1659243250307,0.4551435,23806.0,23804.0,0.02578202]
[1659243250521,0.4551435,23806.0,23803.0,0.010498]
[1659243250753,0.4081435,23806.0,23803.0,0.010498]
[1659243251438,0.04788617,23806.0,23804.0,0.23574802]
[1659243251866,0.04788617,23806.0,23804.0,0.209966]
[1659243252520,0.04788617,23806.0,23804.0,0.23574802]
[1659243252722,0.00088617,23806.0,23804.0,0.23574802]
[1659243253368,0.05404488,23806.0,23804.0,0.209966]
[1659243254320,0.04488617,23806.0,23804.0,0.23574802]
[1659243254776,0.00088617,23806.0,23804.0,0.23574802]
[1659243254955,0.01004488,23806.0,23804.0,0.209966]
[1659243255174,0.00088617,23806.0,23804.0,0.209966]
[1659243255310,0.00088617,23806.0,23804.0,0.23574802]
[1659243255718,0.04788617,23806.0,23804.0,0.209966]
[1659243255921,0.00915871,23805.0,23804.0,0.209966]
[1659243256356,0.04788617,23806.0,23804.0,0.23574802]
[1659243256574,0.04788617,23806.0,23804.0,0.209966]
[1659243256984,0.00088617,23806.0,23804.0,0.209966]
[1659243257197,0.00088617,23806.0,23805.0,0.02578202]
[1659243257438,0.04788617,23806.0,23805.0,0.02578202]
[1659243258349,0.04788617,23806.0,23803.0,0.310498]
[1659243258547,0.04788617,23806.0,23804.0,0.07578202]
[1659243258797,0.00088617,23806.0,23804.0,0.07578202]
[1659243259544,0.01004488,23806.0,23804.0,0.05]
[1659243259750,0.04788617,23806.0,23804.0,0.05]
[1659243260788,0.04788617,23806.0,23805.0,0.02578202]
[1659243261005,0.04788617,23806.0,23804.0,0.35]
[1659243261250,0.00088617,23806.0,23804.0,0.05]
[1659243261449,0.04388617,23806.0,23804.0,0.05]
[1659243261894,0.04388617,23806.0,23805.0,0.02578202]
[1659243263254,0.00088617,23806.0,23805.0,0.02578202]
[1659243263466,0.04888617,23806.0,23804.0,0.05]
[1659243264374,0.04888617,23806.0,23805.0,0.02578202]
[1659243264592,0.04888617,23806.0,23804.0,0.05]
[1659243264811,0.00088617,23806.0,23804.0,0.05]
[1659243265029,0.00088617,23806.0,23805.0,0.00027849]
[1659243265264,0.00088617,23806.0,23805.0,0.02606051]
[1659243265457,0.04888617,23806.0,23805.0,0.02606051]
[1659243265674,0.04888617,23806.0,23804.0,0.05]
[1659243266123,0.04888617,23806.0,23804.0,0.0502785]
[1659243266543,0.04888617,23806.0,23805.0,0.02578202]
[1659243266796,0.00977731,23806.0,23804.0,0.0502785]
[1659243267018,0.01004488,23806.0,23804.0,0.0502785]
[1659243267221,0.00088617,23806.0,23804.0,0.0502785]
[1659243267531,0.00088617,23806.0,23805.0,0.02578202]
[1659243268064,0.00088617,23806.0,23804.0,0.0502785]
[1659243268431,0.00088617,23806.0,23805.0,0.02578202]
[1659243269013,0.00088617,23806.0,23804.0,0.05]
[1659243269429,0.00082606,23806.0,23805.0,0.05]
[1659243269841,0.00082606,23806.0,23804.0,0.02578202]
[1659243270049,0.00082606,23806.0,23261.0,0.001]
[1659243270050,0.02578,23804.0,23799.0,0.59837783]
[1659243270329,0.80522353,23803.0,23799.0,0.59837783]
[1659243270546,0.0943542,23800.0,23793.0,0.010502]
[1659243270757,0.0943542,23800.0,23795.0,0.010503]
[1659243270758,0.0943542,23796.0,23795.0,0.010503]
[1659243271417,0.0943542,23794.0,23793.0,0.010502]
[1659243271648,0.40725733,23799.0,23793.0,0.010502]
[1659243272057,0.603612,23798.0,23793.0,0.010502]
[1659243272282,0.71086933,23797.0,23793.0,0.010502]
[1659243272496,0.00915871,23796.0,23793.0,0.010502]
[1659243273774,0.0943542,23793.0,23792.0,0.256063]
[1659243274046,0.00915871,23793.0,23792.0,0.51367]
[1659243274283,0.038,23793.0,23792.0,0.824173]
[1659243274497,0.038,23793.0,23792.0,0.520561]
[1659243275123,0.038,23793.0,23792.0,0.86367]
[1659243275355,0.038,23793.0,23792.0,0.81367]
[1659243275805,0.40725733,23797.0,23792.0,0.81367]
[1659243276024,0.40725733,23797.0,23793.0,0.3]
[1659243276459,0.40725733,23798.0,23793.0,0.3]
[1659243277125,0.40725733,23798.0,23792.0,0.610058]
[1659243277560,0.40725733,23798.0,23792.0,0.560058]
[1659243278027,0.40725733,23798.0,23792.0,0.610058]
[1659243278264,0.45025733,23798.0,23792.0,0.610058]
[1659243278687,0.45025733,23798.0,23792.0,0.560058]
[1659243278900,0.45025733,23798.0,23792.0,0.610058]
[1659243279329,0.45025733,23798.0,23792.0,0.910058]
[1659243279546,0.40725733,23798.0,23792.0,0.910058]
[1659243280414,0.45825733,23798.0,23792.0,0.910058]
[1659243281290,0.45825733,23798.0,23792.0,0.860058]
[1659243281720,0.40725733,23798.0,23792.0,0.860058]
[1659243282200,0.40725733,23798.0,23792.0,0.910058]
[1659243282408,0.45025733,23798.0,23792.0,1.435146]
[1659243282884,0.043,23798.0,23792.0,1.84240333]
[1659243283114,0.21903343,23797.0,23793.0,0.51226733]
[1659243283336,0.21903343,23797.0,23794.0,0.53609927]
[1659243283539,0.21903343,23797.0,23794.0,0.53594127]
[1659243283989,0.2186544,23797.0,23794.0,0.58594127]
[1659243284440,0.2596544,23797.0,23794.0,0.58582624]
[1659243284650,0.2596544,23797.0,23794.0,0.58372258]
[1659243284861,0.2596544,23797.0,23794.0,0.53594127]
[1659243285546,0.2346544,23797.0,23795.0,0.40725733]
[1659243285777,0.1936544,23797.0,23796.0,0.3]
[1659243286449,0.2346544,23797.0,23796.0,0.3]
[1659243286903,0.2346544,23797.0,23794.0,0.210024]
[1659243287131,0.00931671,23796.0,23794.0,0.210024]
[1659243287565,0.00931671,23796.0,23794.0,0.23564803]
[1659243287812,0.1936544,23797.0,23794.0,0.210024]
[1659243288044,0.00931671,23796.0,23794.0,0.210024]
[1659243288270,0.05231671,23796.0,23794.0,0.210024]
[1659243288715,0.043,23796.0,23794.0,0.28564803]
[1659243288927,0.043,23796.0,23795.0,0.303612]
[1659243289216,0.043,23796.0,23795.0,0.603612]
[1659243289357,0.043,23796.0,23795.0,0.3]
[1659243289591,0.42742833,23798.0,23795.0,0.3]
[1659243289810,0.42742833,23798.0,23796.0,0.3]
[1659243290256,0.47142833,23798.0,23796.0,0.3]
[1659243290724,0.48074504,23798.0,23795.0,0.3]
[1659243291384,0.48074504,23798.0,23794.0,0.53564803]
[1659243291594,0.43674504,23798.0,23794.0,0.53564803]
[1659243292288,0.48074504,23798.0,23794.0,0.53564803]
[1659243292729,0.48074504,23798.0,23795.0,0.3]
[1659243292957,0.303612,23797.0,23794.0,0.210024]
[1659243293186,0.48074504,23798.0,23794.0,0.210024]
[1659243293670,0.43674504,23798.0,23794.0,0.210024]
[1659243294312,0.48074504,23798.0,23794.0,0.210024]
[1659243295189,0.48074504,23798.0,23795.0,0.02562403]
[1659243295408,0.47142833,23798.0,23795.0,0.02562403]
[1659243295641,0.42742833,23798.0,23794.0,0.210024]
[1659243296083,0.42742833,23798.0,23795.0,0.02562403]
[1659243296294,0.47142833,23798.0,23794.0,0.210024]
[1659243297026,0.044,23798.0,23794.0,0.210024]
[1659243297878,0.303612,23797.0,23794.0,0.210024]
[1659243298106,0.969,23802.0,23794.0,0.210024]
[1659243298322,0.044,23798.0,23794.0,0.210024]
[1659243298759,0.044,23798.0,23795.0,0.02562403]
[1659243298982,0.00931671,23797.0,23795.0,0.02562403]
[1659243299209,0.044,23798.0,23794.0,0.210024]
[1659243300068,0.044,23798.0,23795.0,0.02562403]
[1659243300290,0.088,23798.0,23794.0,0.210024]
[1659243300754,0.40725733,23801.0,23794.0,0.210024]
[1659243300976,0.303612,23800.0,23794.0,0.210024]
[1659243301210,0.40725733,23799.0,23794.0,0.210024]
[1659243301650,0.303612,23798.0,23794.0,0.210024]
[1659243301882,0.40725733,23798.0,23795.0,0.02562403]
[1659243302128,0.40725733,23798.0,23794.0,0.210024]
[1659243302345,0.45125733,23798.0,23794.0,0.210024]
[1659243303001,0.00931671,23797.0,23794.0,0.210024]
[1659243304319,0.05231671,23797.0,23795.0,0.02562403]
[1659243304613,0.05231671,23797.0,23794.0,0.210024]
[1659243304806,0.043,23797.0,23794.0,0.210024]
[1659243305681,0.40725733,23798.0,23795.0,0.02562403]
[1659243305905,0.41657404,23798.0,23795.0,0.02562403]
[1659243306357,0.40725733,23798.0,23795.0,0.02562403]
[1659243306568,0.45125733,23798.0,23795.0,0.02562403]
[1659243306781,0.45125733,23798.0,23794.0,0.210024]
[1659243306993,0.00931671,23797.0,23794.0,0.210024]
[1659243307441,0.00931671,23797.0,23794.0,0.23564803]
[1659243307890,0.00931671,23797.0,23794.0,0.210024]
[1659243308594,0.05231671,23797.0,23794.0,0.210024]
[1659243309901,0.00431671,23797.0,23794.0,0.210024]
[1659243310111,0.603612,23797.0,23794.0,0.210024]
[1659243310343,0.603612,23797.0,23794.0,0.185024]
[1659243310344,0.303612,23796.0,23794.0,0.185024]
[1659243310569,0.043,23797.0,23794.0,0.185024]
[1659243310779,0.043,23797.0,23795.0,0.03467316]
[1659243310995,0.043,23797.0,23794.0,0.160024]
[1659243311685,0.38657404,23798.0,23794.0,0.160024]
[1659243312471,0.303612,23797.0,23794.0,0.160024]
[1659243312767,0.43157404,23798.0,23794.0,0.160024]
[1659243313932,0.43157404,23798.0,23795.0,0.03467316]
[1659243314138,0.43157404,23798.0,23794.0,0.160024]
[1659243314139,0.38657404,23798.0,23794.0,0.160024]
[1659243314358,0.42557404,23798.0,23794.0,0.160024]
[1659243315226,0.42557404,23798.0,23795.0,0.03467316]
[1659243315445,0.303612,23797.0,23794.0,0.160024]
[1659243315663,0.3,23797.0,23794.0,0.160024]
[1659243315910,0.38657404,23798.0,23794.0,0.160024]
[1659243316360,0.038,23797.0,23794.0,0.160024]
[1659243317652,0.38657404,23798.0,23794.0,0.160024]
[1659243318269,0.42557404,23798.0,23794.0,0.160024]
[1659243318478,0.303612,23797.0,23794.0,0.160024]
[1659243318694,0.42557404,23798.0,23794.0,0.19469716]
[1659243319590,0.38657404,23798.0,23794.0,0.19469716]
[1659243319864,0.38657404,23798.0,23794.0,0.160024]
[1659243320305,0.42557404,23798.0,23795.0,0.03467316]
[1659243320737,0.42557404,23798.0,23794.0,0.160024]
[1659243320956,0.039,23798.0,23794.0,0.160024]
[1659243321197,0.039,23798.0,23797.0,0.1]
[1659243321400,0.039,23798.0,23797.0,0.679977]
[1659243321634,0.3,23804.0,23797.0,0.863604]
[1659243321862,0.71086933,23803.0,23798.0,0.3]
[1659243322073,1.01086933,23802.0,23798.0,0.3]
[1659243322319,0.40725733,23802.0,23798.0,0.3]
[1659243322771,0.40725733,23802.0,23797.0,0.259992]
[1659243323195,0.40725733,23802.0,23797.0,0.309992]
[1659243323416,0.40725733,23802.0,23798.0,0.3]
[1659243323662,0.303612,23801.0,23797.0,0.259992]
[1659243323890,0.40725733,23802.0,23797.0,0.259992]
[1659243324340,0.043,23801.0,23797.0,0.259992]
[1659243324551,0.043,23801.0,23798.0,0.03467316]
[1659243325656,0.40725733,23802.0,23798.0,0.03467316]
[1659243325892,0.40725733,23802.0,23798.0,0.33467316]
[1659243326307,0.303612,23801.0,23798.0,0.33467316]
[1659243326535,0.45225733,23802.0,23798.0,0.3]
[1659243326972,0.45225733,23802.0,23797.0,0.57270464]
[1659243327687,0.40725733,23802.0,23797.0,0.67270464]
[1659243328398,0.48625733,23802.0,23797.0,0.67270464]
[1659243328866,0.48625733,23802.0,23797.0,0.62270464]
[1659243329710,0.40725733,23802.0,23797.0,0.62270464]
[1659243329938,0.40725733,23802.0,23797.0,0.56770464]
[1659243330165,0.40725733,23802.0,23797.0,0.52270464]
[1659243330629,0.45225733,23802.0,23797.0,0.52270464]
[1659243330850,0.40725733,23801.0,23797.0,0.52270464]
[1659243331324,0.303612,23800.0,23797.0,0.52270464]
[1659243331538,0.40725733,23800.0,23797.0,0.509992]
[1659243336034,0.40725733,23800.0,23797.0,0.499992]
[1659243337379,0.40725733,23800.0,23798.0,0.3]
[1659243337611,0.40725733,23800.0,23797.0,0.199992]
[1659243338503,0.40725733,23800.0,23797.0,0.23466516]
[1659243339211,0.3,23799.0,23794.0,0.5806]
[1659243339446,0.71086933,23798.0,23790.0,0.5829]
[1659243339673,0.40725733,23798.0,23790.0,0.95525733]
[1659243339904,0.3,23797.0,23790.0,0.95525733]
[1659243340145,0.40725733,23798.0,23790.0,0.95525733]
[1659243340386,0.40725733,23798.0,23791.0,0.513682]
[1659243340606,0.40725733,23798.0,23792.0,0.3]
[1659243340816,0.40725733,23798.0,23791.0,0.61007]
[1659243341046,0.40725733,23798.0,23792.0,1.40464161]
[1659243341253,0.40725733,23798.0,23793.0,0.29993701]
[1659243341485,0.45325733,23798.0,23793.0,0.29993701]
[1659243342395,0.45325733,23798.0,23793.0,0.34993701]
[1659243342616,0.45325733,23798.0,23793.0,0.29993701]
[1659243342894,0.40725733,23798.0,23793.0,0.29993701]
[1659243343115,0.40725733,23798.0,23791.0,0.26007]
[1659243343331,0.40725733,23798.0,23791.0,0.61007]
[1659243343573,0.45625733,23798.0,23791.0,0.51007]
[1659243344275,0.45625733,23798.0,23791.0,0.61007]
[1659243344503,0.303612,23797.0,23791.0,0.51007]
[1659243344727,0.40725733,23798.0,23791.0,0.51007]
[1659243344947,0.3,23797.0,23791.0,0.51007]
[1659243345187,0.3,23797.0,23792.0,0.303612]
[1659243345401,0.3,23797.0,23793.0,0.3]
[1659243345627,0.3,23797.0,23791.0,0.64163]
[1659243346282,0.45325733,23798.0,23791.0,0.64163]
[1659243346735,0.40725733,23798.0,23791.0,0.64163]
[1659243347376,0.45325733,23798.0,23791.0,0.64163]
[1659243348759,0.40725733,23798.0,23791.0,0.64163]
[1659243349222,0.40725733,23798.0,23791.0,0.61007]
[1659243349438,0.45325733,23798.0,23791.0,0.61007]
[1659243350855,0.40725733,23798.0,23791.0,0.61007]
[1659243351529,0.45325733,23798.0,23791.0,0.61007]
[1659243352909,0.40725733,23798.0,23791.0,0.61007]
[1659243353093,0.3,23797.0,23791.0,0.61007]
[1659243353311,0.303612,23796.0,23791.0,0.51007]
[1659243353522,0.70725733,23797.0,23791.0,0.51007]
[1659243354169,0.70725733,23797.0,23791.0,0.56007]
[1659243354416,0.70725733,23797.0,23791.0,0.61007]
[1659243354690,0.346,23798.0,23791.0,0.61007]
[1659243354896,0.40725733,23798.0,23792.0,0.303612]
[1659243355134,0.40725733,23798.0,23793.0,0.35]
[1659243355383,0.45325733,23798.0,23794.0,0.3]
[1659243356266,0.45325733,23798.0,23795.0,0.03467316]
[1659243356837,0.45325733,23798.0,23796.0,0.00054742]
[1659243357005,0.45325733,23798.0,23795.0,0.03467316]
[1659243357436,0.45125733,23798.0,23795.0,0.03467316]
[1659243357648,0.45125733,23798.0,23793.0,0.05]
[1659243357871,0.45125733,23798.0,23792.0,0.4]
[1659243358081,0.45125733,23798.0,23793.0,0.303612]
[1659243358319,0.45125733,23798.0,23792.0,0.4]
[1659243358320,0.45125733,23798.0,23794.0,0.3]
[1659243358971,0.45125733,23798.0,23795.0,0.03467316]
[1659243359222,0.40725733,23798.0,23794.0,0.35]
[1659243359443,0.44825733,23798.0,23795.0,0.3]
[1659243359667,0.44825733,23798.0,23792.0,0.4]
[1659243360771,0.40725733,23798.0,23792.0,0.4]
[1659243361427,0.45025733,23798.0,23792.0,0.35]
[1659243361643,0.45025733,23798.0,23792.0,0.1]
[1659243361906,0.45025733,23798.0,23792.0,0.35]
[1659243363472,0.45025733,23798.0,23792.0,0.3]
[1659243363697,0.45014735,23798.0,23792.0,0.05]
[1659243363918,0.45014735,23798.0,23792.0,0.35]
[1659243365020,0.45014735,23798.0,23793.0,0.303612]
[1659243365227,0.40714735,23798.0,23794.0,0.3]
[1659243365495,0.45014735,23798.0,23794.0,0.3]
[1659243365780,0.45014735,23798.0,23795.0,0.03467316]
[1659243365987,0.45014735,23798.0,23794.0,0.3]
[1659243366417,0.45014735,23798.0,23793.0,0.303612]
[1659243366656,0.45014735,23798.0,23794.0,0.3]
[1659243366657,0.40714735,23798.0,23794.0,0.3]
[1659243366877,0.40714735,23798.0,23793.0,0.05]
[1659243367557,0.45014735,23798.0,23793.0,0.05]
[1659243368635,0.40714735,23798.0,23792.0,0.3]
[1659243368860,0.40714735,23798.0,23792.0,0.1]
[1659243369068,0.40714735,23798.0,23792.0,0.35]
[1659243369552,0.45014735,23798.0,23792.0,0.35]
[1659243369779,0.45014735,23798.0,23793.0,0.85336457]
[1659243369995,0.45014735,23798.0,23794.0,0.653612]
[1659243370231,0.45014735,23798.0,23794.0,0.3]
[1659243370677,0.40714735,23798.0,23794.0,0.3]
[1659243371325,0.44814735,23798.0,23794.0,0.3]
[1659243371998,0.44814735,23798.0,23795.0,0.03467316]
[1659243372445,0.44814735,23798.0,23794.0,0.35]
[1659243372657,0.40714735,23798.0,23794.0,0.4]
[1659243373082,0.40725733,23800.0,23795.0,0.24470416]
[1659243373595,0.038,23798.0,23795.0,0.24470416]
[1659243374253,0.038,23798.0,23796.0,0.303612]
[1659243374474,0.038,23798.0,23797.0,0.3]
[1659243374692,0.38225733,23800.0,23797.0,0.3]
[1659243374908,0.303612,23799.0,23797.0,0.510015]
[1659243375117,0.38225733,23800.0,23797.0,0.510015]
[1659243375334,0.44525733,23800.0,23797.0,0.510015]
[1659243375768,0.44525733,23800.0,23797.0,0.210015]
[1659243376429,0.303612,23799.0,23797.0,0.210015]
[1659243376642,0.44525733,23800.0,23797.0,0.210015]
[1659243376862,0.36725733,23800.0,23797.0,0.210015]
[1659243377113,0.36725733,23800.0,23797.0,0.20994763]
[1659243377334,0.40725733,23800.0,23797.0,0.20994763]
[1659243377779,0.303612,23799.0,23797.0,0.20994763]
[1659243377982,0.40725733,23800.0,23797.0,0.24462079]
[1659243378481,0.40725733,23800.0,23797.0,0.20994763]
[1659243378905,0.36725733,23800.0,23797.0,0.20994763]
[1659243379320,0.36725733,23800.0,23797.0,0.24462079]
[1659243379528,0.41325733,23800.0,23797.0,0.24462079]
[1659243380815,0.303612,23799.0,23797.0,0.20994763]
[1659243381085,0.36725733,23800.0,23797.0,0.20994763]
[1659243381311,0.36725733,23800.0,23797.0,0.24462079]
[1659243381546,0.06,23799.0,23797.0,0.29462079]
[1659243381768,0.06,23799.0,23797.0,0.24462079]
[1659243382219,0.303612,23798.0,23797.0,0.24462079]
[1659243382431,0.06,23799.0,23797.0,0.20994763]
[1659243382651,0.36725733,23800.0,23797.0,0.20994763]
[1659243383342,0.41325733,23800.0,23798.0,0.03467316]
[1659243384248,0.303612,23799.0,23798.0,0.03467316]
[1659243384467,0.41325733,23800.0,23797.0,0.20994763]
[1659243384677,0.36725733,23800.0,23797.0,0.24462079]
[1659243384959,0.36725733,23800.0,23797.0,0.20994763]
[1659243385420,0.41325733,23800.0,23797.0,0.20994763]
[1659243385819,0.303612,23799.0,23797.0,0.20994763]
[1659243386464,0.41325733,23800.0,23797.0,0.20994763]
[1659243386679,0.36725733,23800.0,23798.0,0.03467316]
[1659243386887,0.303612,23799.0,23796.0,0.3]
[1659243387093,0.36725733,23800.0,23796.0,0.3]
[1659243387524,0.42825733,23800.0,23796.0,0.3]
[1659243387977,0.42825733,23800.0,23797.0,0.03467316]
[1659243388925,0.36725733,23800.0,23796.0,0.3]
[1659243389483,0.41425733,23800.0,23796.0,0.3]
[1659243389892,0.41425733,23800.0,23797.0,0.03467316]
[1659243390301,0.41425733,23800.0,23796.0,0.3]
[1659243390746,0.36725733,23800.0,23796.0,0.3]
[1659243390962,0.36725733,23800.0,23797.0,0.03467316]
[1659243391194,0.303612,23799.0,23797.0,0.03467316]
[1659243391439,0.36725733,23800.0,23797.0,0.03467316]
[1659243392527,0.36725733,23800.0,23798.0,0.00054738]
[1659243392778,0.42725733,23800.0,23798.0,0.00054738]
[1659243393265,0.42725733,23800.0,23796.0,0.4]
[1659243393504,0.47425733,23800.0,23797.0,0.03522056]
[1659243393737,0.47425733,23800.0,23796.0,0.510024]
[1659243394614,0.36725733,23800.0,23797.0,0.03467316]
[1659243394830,0.303612,23799.0,23797.0,0.03467316]
[1659243395050,0.36725733,23800.0,23797.0,0.03467316]
[1659243395257,0.36725733,23800.0,23796.0,0.510024]
[1659243395461,0.047,23800.0,23797.0,0.03467316]
[1659243396861,0.70725733,23802.0,23797.0,0.03467316]
[1659243397105,0.303612,23801.0,23797.0,0.03467316]
[1659243397323,0.70725733,23802.0,23796.0,0.560024]
[1659243397544,0.045,23800.0,23796.0,0.560024]
[1659243397782,0.045,23800.0,23797.0,0.03467316]
[1659243398679,0.70725733,23802.0,23797.0,0.03467316]
[1659243398910,0.303612,23801.0,23797.0,0.03467316]
[1659243399146,0.303612,23800.0,23797.0,0.03467316]
[1659243399379,0.303612,23799.0,23796.0,0.560024]
[1659243399588,0.77325733,23802.0,23797.0,0.03467316]
[1659243399799,0.303612,23801.0,23797.0,0.03467316]
[1659243400042,0.77325733,23802.0,23797.0,0.03467316]
[1659243400253,0.303612,23801.0,23796.0,0.510024]
[1659243400507,0.303612,23800.0,23796.0,0.510024]
[1659243400734,0.47325733,23802.0,23797.0,0.03467316]
[1659243400971,0.303623,23801.0,23797.0,0.03467316]
[1659243401201,0.303623,23800.0,23797.0,0.03467316]
[1659243401423,0.46125733,23802.0,23797.0,0.03467316]
[1659243401643,0.303623,23801.0,23797.0,0.03467316]
[1659243401867,0.46125733,23802.0,23797.0,0.03467316]
[1659243402107,0.303623,23801.0,23797.0,0.03467316]
[1659243402316,0.46125733,23802.0,23797.0,0.03467316]
[1659243402546,0.303623,23801.0,23797.0,0.03467316]
[1659243402766,0.40725733,23802.0,23797.0,0.03467316]
[1659243403185,0.303623,23801.0,23797.0,0.03467316]
[1659243403415,0.45725733,23802.0,23797.0,0.03467316]
[1659243403873,0.303623,23801.0,23797.0,0.03467316]
[1659243404106,0.45725733,23802.0,23797.0,0.03467316]
[1659243404469,0.303623,23801.0,23797.0,0.03467316]
[1659243404832,0.40725733,23802.0,23797.0,0.03467316]
[1659243405048,0.603623,23801.0,23797.0,0.03467316]
[1659243405287,0.3,23801.0,23797.0,0.03467316]
[1659243406626,0.303623,23800.0,23797.0,0.03467316]
[1659243406844,0.3,23801.0,23797.0,0.03467316]
[1659243407303,0.346,23801.0,23797.0,0.03467316]
[1659243407533,0.046,23801.0,23797.0,0.38465114]
[1659243407768,0.046,23801.0,23800.0,0.05]
[1659243407988,0.046,23801.0,23800.0,0.38829616]
[1659243408246,0.046,23801.0,23800.0,0.90458916]
[1659243408483,0.046,23801.0,23800.0,1.20821216]
[1659243408923,0.046,23801.0,23800.0,1.61546949]
[1659243409140,0.00082606,23806.0,23800.0,1.61546949]
[1659243409371,0.00082606,23806.0,23805.0,0.05]
[1659243409824,0.30444906,23806.0,23805.0,0.05]
[1659243410038,0.00082606,23806.0,23801.0,1.356078]
[1659243410709,0.00082606,23806.0,23805.0,0.05]
[1659243410940,0.00082606,23806.0,23805.0,0.38467316]
[1659243411172,0.00082606,23806.0,23805.0,1.40549649]
[1659243411402,0.05082606,23806.0,23805.0,1.78700649]
[1659243411850,0.05082606,23806.0,23805.0,1.79964997]
[1659243412828,0.00082606,23806.0,23805.0,1.79964997]
[1659243413514,0.04982606,23806.0,23805.0,1.78700649]
[1659243413743,0.04982606,23806.0,23805.0,1.00549649]
[1659243413973,0.04982606,23806.0,23805.0,0.44193049]
[1659243414194,0.04982606,23806.0,23805.0,0.95549149]
[1659243414683,0.00082606,23806.0,23805.0,0.95549149]
[1659243415373,0.05182606,23806.0,23805.0,0.95622025]
[1659243415597,0.05182606,23806.0,23805.0,1.00622025]
[1659243415811,0.05182606,23806.0,23805.0,1.35622025]
[1659243416772,0.00082606,23806.0,23805.0,1.35622025]
[1659243417262,0.00082606,23806.0,23805.0,1.40622025]
[1659243417479,0.05982606,23806.0,23805.0,1.40622025]
[1659243419044,0.00082606,23806.0,23805.0,1.40622025]
[1659243419432,0.05182606,23806.0,23805.0,1.78052025]
[1659243420389,0.05182606,23806.0,23805.0,1.73052025]
[1659243420857,0.00082606,23806.0,23805.0,1.73052025]
[1659243421540,0.05182606,23806.0,23805.0,1.73052025]
[1659243421987,0.05182606,23806.0,23805.0,1.35549149]
[1659243422690,0.05182606,23806.0,23805.0,1.30549149]
[1659243422902,0.05182606,23806.0,23805.0,1.35549149]
[1659243423353,0.00082606,23806.0,23805.0,1.35549149]
[1659243423581,0.05182606,23806.0,23805.0,1.35549149]
[1659243424275,0.05064074,23806.0,23805.0,1.35549149]
[1659243424742,0.001,23808.0,23805.0,1.35549149]
[1659243424983,0.001,23808.0,23806.0,1.06088033]
[1659243425214,0.001,23808.0,23807.0,0.303623]
[1659243425437,0.053,23808.0,23807.0,0.603623]
[1659243425657,0.053,23808.0,23807.0,0.6043517]
[1659243426320,0.003,23808.0,23807.0,0.6043517]
[1659243426547,0.003,23808.0,23807.0,0.6543517]
[1659243426777,0.001,23809.0,23807.0,0.6543517]
[1659243426778,0.001,23809.0,23807.0,0.6043517]